fUST/lending_fUST_20240904
["ID","MTS","AMOUNT","RATE_DAILY","PERIOD"]
[337091799,1725420688397,-500.0,0.00030136,2]
[337091800,1725420688406,-5252.83,0.00030136,2]
[337091801,1725420688416,-576.63,0.00030136,2]
[337091802,1725420688426,-901.7,0.00030136,2]
[337091803,1725420688436,-500.0,0.00030136,2]
[337091804,1725420688447,-1751.72,0.00030136,2]
[337091805,1725420688458,-614.84470803,0.00030136,2]
[337091806,1725420688468,-500.0,0.00030136,2]
[337091807,1725420688480,-500.0,0.00030136,2]
[337091808,1725420688492,-1256.59,0.00030136,2]
[337091809,1725420688504,-233.05690235,0.00030136,2]
[337091810,1725420688515,-500.0,0.00030136,2]
[337091811,1725420688527,-1139.08,0.00030136,2]
[337091812,1725420688537,-500.0,0.00030136,2]
[337091813,1725420688548,-1745.83,0.00030136,2]
[337091814,1725420688560,-500.0,0.00030136,2]
[337091815,1725420688571,-203.198806,0.00030149,2]
[337091816,1725420688581,-175.677784,0.00030149,2]
[337091817,1725420688590,-165.137318,0.00030149,2]
[337091818,1725420688600,-990.987177,0.00030149,2]
[337091819,1725420688609,-990.987177,0.00030149,2]
[337091820,1725420688620,-396.394871,0.00030149,2]
[337091821,1725420688630,-198.197436,0.00030149,2]
[337091822,1725420688642,-500.0,0.00030167,5]
[337091823,1725420688652,-500.17636551,0.00030224,5]
[337091824,1725420688661,-211.1839656,0.00030329,2]
[337091825,1725420688673,-500.0,0.0003041,2]
[337091826,1725420688682,-500.0,0.0003041,2]
[337091827,1725420688692,-500.0,0.0003041,2]
[337091828,1725420688702,-500.0,0.0003041,2]
[337091829,1725420688713,-500.0,0.0003041,2]
[337091830,1725420688723,-500.0,0.0003041,2]
[337091831,1725420688733,-500.0,0.0003041,2]
[337091832,1725420688744,-564.57084708,0.0003041,2]
[337091833,1725420688754,-500.0,0.0003041,2]
[337091834,1725420688765,-500.0,0.0003041,2]
[337091835,1725420688776,-500.0,0.0003041,2]
[337091836,1725420688894,-768.18,0.0003041,2]
[337091837,1725420688906,-500.0,0.0003041,2]
[337091838,1725420688917,-500.0,0.0003041,2]
[337091839,1725420688929,-500.0,0.0003041,2]
[337091840,1725420688941,-500.0,0.0003041,2]
[337091841,1725420688951,-500.0,0.0003041,2]
[337091842,1725420688963,-1082.29,0.0003041,2]
[337091843,1725420688973,-686.25,0.0003041,2]
[337091844,1725420688984,-680.2,0.0003041,2]
[337091845,1725420688994,-558.73193814,0.0003041,2]
[337091846,1725420689004,-500.0,0.0003041,2]
[337091847,1725420689014,-1000.03362622,0.0003041,60]
[337091848,1725420689026,-592.32,0.0003041,2]
[337091849,1725420689038,-500.0,0.0003041,2]
[337091850,1725420689050,-500.0,0.0003041,2]
[337091851,1725420689059,-674.32,0.0003041,2]
[337091852,1725420689069,-4019.26,0.0003041,2]
[337091853,1725420689078,-675.84,0.0003041,2]
[337091854,1725420689089,-500.0,0.0003041,2]
[337091855,1725420689101,-500.0,0.0003041,2]
[337091856,1725420689110,-500.0,0.0003041,2]
[337091857,1725420689120,-754.15,0.0003041,2]
[337091858,1725420689130,-500.0,0.0003041,2]
[337091859,1725420689140,-609.64,0.0003041,2]
[337091860,1725420689150,-500.00329276,0.0003041,2]
[337091861,1725420689161,-654.89,0.0003041,2]
[337091862,1725420689171,-500.0,0.0003041,2]
[337091863,1725420689183,-500.0,0.0003041,2]
[337091864,1725420689194,-511.88,0.0003041,2]
[337091865,1725420689205,-500.0,0.0003041,2]
[337091866,1725420689215,-500.0,0.0003041,2]
[337091867,1725420689224,-309.26633084,0.0003041,2]
[337091868,1725420689233,-500.0,0.0003041,2]
[337091869,1725420689244,-731.93,0.0003041,2]
[337091870,1725420689255,-500.0,0.0003041,2]
[337091871,1725420689267,-555.67,0.0003041,2]
[337091872,1725420689277,-534.31,0.0003041,2]
[337091873,1725420689287,-2911.16,0.0003041,2]
[337091874,1725420689296,-500.0,0.0003041,2]
[337091875,1725420689305,-446.52609056,0.0003041,2]
[337091876,1725420689315,-500.0,0.0003041,2]
[337091877,1725420689325,-500.0,0.0003041,2]
[337091878,1725420689334,-500.0,0.0003041,2]
[337091879,1725420689345,-500.0,0.0003041,2]
[337091880,1725420689356,-1427.1,0.0003041,2]
[337091881,1725420689369,-500.0,0.0003041,2]
[337091882,1725420689380,-500.0,0.0003041,2]
[337091883,1725420689391,-500.0,0.0003041,2]
[337091884,1725420689405,-500.0,0.0003041,2]
[337091885,1725420689415,-500.0,0.0003041,2]
[337091886,1725420689426,-881.16,0.0003041,2]
[337091887,1725420689438,-500.0,0.0003041,2]
[337091888,1725420689448,-500.0,0.0003041,2]
[337091889,1725420689459,-706.4,0.0003041,2]
[337091890,1725420689470,-524.63,0.0003041,2]
[337091891,1725420689482,-500.0,0.0003041,2]
[337091892,1725420689493,-500.0,0.0003041,2]
[337091893,1725420689504,-500.0,0.0003041,2]
[337091894,1725420689515,-521.29427164,0.0003041,2]
[337091895,1725420689526,-500.0,0.0003041,2]
[337091896,1725420689536,-500.0,0.0003041,2]
[337091897,1725420689547,-500.0,0.0003041,2]
[337091898,1725420689559,-568.32066387,0.0003041,2]
[337091899,1725420689569,-2009.2,0.0003041,2]
[337091900,1725420689579,-695.98,0.0003041,2]
[337091901,1725420689589,-500.0,0.0003041,2]
[337091902,1725420689599,-896.76,0.0003041,2]
[337091903,1725420689609,-500.0,0.0003041,2]
[337091904,1725420689620,-1155.59,0.0003041,2]
[337091905,1725420689631,-500.0,0.0003041,2]
[337091906,1725420689647,-592.51,0.0003041,2]
[337091907,1725420689657,-791.9,0.0003041,2]
[337091908,1725420689667,-547.68,0.0003041,2]
[337091909,1725420689677,-500.0,0.0003041,2]
[337091910,1725420689688,-500.0,0.0003041,2]
[337091911,1725420689700,-182.75884027,0.0003041,2]
[337091912,1725420689711,-500.0,0.0003041,2]
[337091913,1725420689721,-500.0,0.0003041,2]
[337091914,1725420689730,-642.42,0.0003041,2]
[337091915,1725420689739,-500.0,0.0003041,2]
[337091916,1725420689749,-1249.32,0.0003041,2]
[337091917,1725420689759,-500.0,0.0003041,2]
[337091918,1725420689769,-500.0,0.0003041,2]
[337091919,1725420689779,-446.99081455,0.0003041,2]
[337091920,1725420689789,-500.0,0.0003041,2]
[337091921,1725420689802,-2356.93,0.0003041,2]
[337091922,1725420689814,-500.0,0.0003041,2]
[337091923,1725420689825,-834.19,0.0003041,2]
[337091924,1725420689836,-511.66907933,0.0003041,2]
[337091925,1725420689848,-540.26474212,0.0003041,2]
[337091926,1725420689857,-958.5,0.0003041,2]
[337091927,1725420689867,-832.71,0.0003041,2]
[337091928,1725420689877,-500.0,0.0003041,2]
[337091929,1725420689889,-652.3,0.0003041,2]
[337091930,1725420689900,-500.0,0.0003041,2]
[337091931,1725420689911,-901.33,0.0003041,2]
[337091932,1725420689922,-514.95246133,0.0003041,2]
[337091933,1725420689932,-1011.35,0.0003041,2]
[337091934,1725420689942,-2862.9,0.0003041,2]
[337091935,1725420689952,-2987.56,0.0003041,2]
[337091936,1725420689963,-500.0,0.0003041,2]
[337091937,1725420689973,-500.0,0.0003041,2]
[337091938,1725420689986,-3402.81,0.0003041,2]
[337091939,1725420689997,-1811.33,0.0003041,2]
[337091940,1725420690009,-500.0,0.0003041,2]
[337091941,1725420690019,-500.0,0.0003041,2]
[337091942,1725420690028,-612.22,0.0003041,2]
[337091943,1725420690039,-1243.1,0.0003041,2]
[337091944,1725420690049,-717.23,0.0003041,2]
[337091945,1725420690058,-4418.31,0.0003041,2]
[337091946,1725420690067,-500.0,0.0003041,2]
[337091947,1725420690077,-115684.14,0.0003041,2]
[337091948,1725420690087,-55826.22,0.0003041,2]
[337091949,1725420690096,-500.0,0.0003041,2]
[337091950,1725420690106,-500.0,0.0003041,2]
[337091951,1725420690115,-500.0,0.0003041,2]
[337091952,1725420690124,-500.0,0.0003041,2]
[337091953,1725420690134,-6301.07,0.0003041,2]
[337091954,1725420690143,-26324.52,0.0003041,2]
[337091955,1725420690153,-636.47,0.0003041,2]
[337091956,1725420690163,-238.68701006,0.0003041,2]
[337091957,1725420690172,-1916.51,0.0003041,2]
[337091958,1725420690181,-500.0,0.0003041,2]
[337091959,1725420690191,-500.0,0.0003041,2]
[337091960,1725420690200,-823.36,0.0003041,2]
[337091961,1725420690210,-1701.17,0.0003041,2]
[337091962,1725420690219,-729.84,0.0003041,2]
[337091963,1725420690229,-500.0,0.0003041,2]
[337091964,1725420690238,-500.0,0.0003041,2]
[337091965,1725420690247,-712.75,0.0003041,2]
[337091966,1725420690257,-500.0,0.0003041,2]
[337091967,1725420690266,-500.0,0.0003041,2]
[337091968,1725420690277,-500.0,0.0003041,2]
[337091969,1725420690288,-1160.46,0.0003041,2]
[337091970,1725420690298,-1329.1,0.0003041,2]
[337091971,1725420690309,-2729.74,0.0003041,2]
[337091972,1725420690320,-500.0,0.0003041,2]
[337091973,1725420690331,-1898.01,0.0003041,2]
[337091974,1725420690341,-517.88917404,0.0003041,2]
[337091975,1725420690352,-500.0,0.0003041,2]
[337091976,1725420690363,-2159.38,0.0003041,2]
[337091977,1725420690375,-1592.01,0.0003041,2]
[337091978,1725420690388,-6188.78,0.0003041,2]
[337091979,1725420690399,-4210.31,0.0003041,2]
[337091980,1725420690411,-1529.25,0.0003041,2]
[337091981,1725420690424,-729.82,0.0003041,2]
[337091982,1725420690434,-10461.88,0.0003041,2]
[337091983,1725420690444,-500.0,0.0003041,2]
[337091984,1725420690456,-1280.26,0.0003041,2]
[337091985,1725420690467,-1560.58,0.0003041,2]
[337091986,1725420690479,-7136.97,0.0003041,2]
[337091987,1725420690489,-1328.68,0.0003041,2]
[337091988,1725420690498,-500.0,0.0003041,2]
[337091989,1725420690509,-929.51,0.0003041,2]
[337091990,1725420690518,-3077.96,0.0003041,2]
[337091991,1725420690527,-683.0,0.0003041,2]
[337091992,1725420690536,-500.0,0.0003041,2]
[337091993,1725420690546,-11939.04,0.0003041,2]
[337091994,1725420690558,-551.24329638,0.0003041,2]
[337091995,1725420690569,-1259.14,0.0003041,2]
[337091996,1725420690578,-13600.34,0.0003041,2]
[337091997,1725420690587,-1182.99,0.0003041,2]
[337091998,1725420690597,-500.0,0.0003041,2]
[337091999,1725420690606,-1155.31,0.0003041,2]
[337092000,1725420690617,-851.0,0.0003041,2]
[337092001,1725420690627,-500.0,0.0003041,2]
[337092002,1725420690637,-1763.89,0.0003041,2]
[337092003,1725420690648,-756.04,0.0003041,2]
[337092004,1725420690658,-500.0,0.0003041,2]
[337092005,1725420690668,-652.71,0.0003041,2]
[337092006,1725420690681,-647.88,0.0003041,2]
[337092007,1725420690693,-4853.04,0.0003041,2]
[337092008,1725420690703,-963.22,0.0003041,2]
[337092009,1725420690714,-1079.72,0.0003041,2]
[337092010,1725420690724,-500.0,0.0003041,2]
[337092011,1725420690736,-414.27377578,0.0003041,2]
[337092012,1725420690747,-803.37,0.0003041,2]
[337092013,1725420690757,-500.0,0.0003041,2]
[337092014,1725420690769,-500.0,0.0003041,2]
[337092015,1725420690787,-606.86,0.0003041,2]
[337092016,1725420690797,-500.0,0.0003041,2]
[337092017,1725420690807,-500.0,0.0003041,2]
[337092018,1725420690816,-1132.32,0.0003041,2]
[337092019,1725420690826,-636.94,0.0003041,2]
[337092020,1725420690835,-500.0,0.0003041,2]
[337092021,1725420690844,-500.0,0.0003041,2]
[337092022,1725420690854,-5252.83,0.0003041,2]
[337092023,1725420690865,-576.63,0.0003041,2]
[337092024,1725420690875,-901.7,0.0003041,2]
[337092025,1725420690886,-500.0,0.0003041,2]
[337092026,1725420690895,-1751.72,0.0003041,2]
[337092027,1725420690905,-500.0,0.0003041,2]
[337092028,1725420690915,-500.0,0.0003041,2]
[337092029,1725420690924,-1256.59,0.0003041,2]
[337092030,1725420690934,-500.0,0.0003041,2]
[337092031,1725420690943,-1139.08,0.0003041,2]
[337092032,1725420690953,-500.0,0.0003041,2]
[337092033,1725420690962,-1745.83,0.0003041,2]
[337092034,1725420690971,-500.0,0.0003041,2]
[337092035,1725420690981,-417.755197,0.00030457,2]
[337092036,1725420690991,-234.03441,0.00030457,2]
[337092037,1725420691001,-1000.0,0.00030494,5]
[337092038,1725420691010,-618.62345339,0.00030494,5]
[337092039,1725420691023,-1000.0,0.00030494,5]
[337092040,1725420691034,-1664.813552,0.00030513,2]
[337092041,1725420691046,-203.198806,0.00030525,2]
[337092042,1725420691056,-990.987177,0.00030525,2]
[337092043,1725420691066,-396.394871,0.00030525,2]
[337092044,1725420691077,-766.42735897,0.00030551,2]
[337092045,1725420691087,-573.753911,0.0003057,2]
[337092046,1725420691098,-1343.81,0.000306,14]
[337092047,1725420691108,-175.677784,0.00030651,2]
[337092048,1725420691118,-500.0,0.00030684,2]
[337092049,1725420691127,-500.0,0.00030684,2]
[337092050,1725420691138,-500.0,0.00030684,2]
[337092051,1725420691148,-291.00572613,0.00030684,2]
[337092052,1725420691255,-351.56063145,0.00030684,2]
[337092053,1725420691268,-510.5,0.00030684,2]
[337092054,1725420691286,-643.47011385,0.00030684,2]
[337092055,1725420691296,-500.0,0.00030684,2]
[337092056,1725420691306,-500.0,0.00030684,2]
[337092057,1725420691315,-500.0,0.00030684,2]
[337092058,1725420691325,-768.18,0.00030684,2]
[337092059,1725420691335,-500.0,0.00030684,2]
[337092060,1725420691345,-500.0,0.00030684,2]
[337092061,1725420691354,-500.0,0.00030684,2]
[337092062,1725420691366,-500.0,0.00030684,2]
[337092063,1725420691376,-500.0,0.00030684,2]
[337092064,1725420691388,-1082.29,0.00030684,2]
[337092065,1725420691400,-686.25,0.00030684,2]
[337092066,1725420691410,-680.2,0.00030684,2]
[337092067,1725420691423,-500.0,0.00030684,2]
[337092068,1725420691433,-592.32,0.00030684,2]
[337092069,1725420691443,-500.0,0.00030684,2]
[337092070,1725420691453,-500.0,0.00030684,2]
[337092071,1725420691465,-674.32,0.00030684,2]
[337092072,1725420691478,-4019.26,0.00030684,2]
[337092073,1725420691489,-675.84,0.00030684,2]
[337092074,1725420691499,-648.13880602,0.00030684,2]
[337092075,1725420691509,-500.0,0.00030684,2]
[337092076,1725420691521,-487.00523598,0.00030684,2]
[337092077,1725420691531,-754.15,0.00030684,2]
[337092078,1725420691542,-500.0,0.00030684,2]
[337092079,1725420691554,-609.64,0.00030684,2]
[337092080,1725420691565,-654.89,0.00030684,2]
[337092081,1725420691576,-500.0,0.00030684,2]
[337092082,1725420691585,-500.0,0.00030684,2]
[337092083,1725420691596,-511.88,0.00030684,2]
[337092084,1725420691607,-500.0,0.00030684,2]
[337092085,1725420691618,-500.0,0.00030684,2]
[337092086,1725420691627,-500.0,0.00030684,2]
[337092087,1725420691638,-731.93,0.00030684,2]
[337092088,1725420691648,-500.0,0.00030684,2]
[337092089,1725420691657,-555.67,0.00030684,2]
[337092090,1725420691667,-534.31,0.00030684,2]
[337092091,1725420691676,-2911.16,0.00030684,2]
[337092092,1725420691687,-500.0,0.00030684,2]
[337092093,1725420691697,-500.0,0.00030684,2]
[337092094,1725420691707,-474.93371368,0.00030684,2]
[337092095,1725420691716,-500.0,0.00030684,2]
[337092096,1725420691726,-500.0,0.00030684,2]
[337092097,1725420691736,-1427.1,0.00030684,2]
[337092098,1725420691746,-500.0,0.00030684,2]
[337092099,1725420691756,-500.0,0.00030684,2]
[337092100,1725420691766,-500.0,0.00030684,2]
[337092101,1725420691776,-500.0,0.00030684,2]
[337092102,1725420691787,-500.0,0.00030684,2]
[337092103,1725420691797,-881.16,0.00030684,2]
[337092104,1725420691806,-500.0,0.00030684,2]
[337092105,1725420691817,-500.0,0.00030684,2]
[337092106,1725420691826,-706.4,0.00030684,2]
[337092107,1725420691837,-524.63,0.00030684,2]
[337092108,1725420691847,-500.0,0.00030684,2]
[337092109,1725420691857,-500.0,0.00030684,2]
[337092110,1725420691867,-500.0,0.00030684,2]
[337092111,1725420691877,-500.0,0.00030684,2]
[337092112,1725420691887,-636.30164949,0.00030684,2]
[337092113,1725420691898,-515.86702724,0.00030684,2]
[337092114,1725420691907,-2009.2,0.00030684,2]
[337092115,1725420691917,-695.98,0.00030684,2]
[337092116,1725420691926,-500.0,0.00030684,2]
[337092117,1725420691936,-896.76,0.00030684,2]
[337092118,1725420691946,-500.0,0.00030684,2]
[337092119,1725420691955,-1155.59,0.00030684,2]
[337092120,1725420691965,-500.0,0.00030684,2]
[337092121,1725420691975,-592.51,0.00030684,2]
[337092122,1725420691984,-791.9,0.00030684,2]
[337092123,1725420691993,-547.68,0.00030684,2]
[337092124,1725420692003,-500.0,0.00030684,2]
[337092125,1725420692013,-500.0,0.00030684,2]
[337092126,1725420692023,-500.0,0.00030684,2]
[337092127,1725420692033,-500.0,0.00030684,2]
[337092128,1725420692042,-642.42,0.00030684,2]
[337092129,1725420692051,-500.0,0.00030684,2]
[337092130,1725420692060,-1249.32,0.00030684,2]
[337092131,1725420692070,-500.0,0.00030684,2]
[337092132,1725420692079,-500.0,0.00030684,2]
[337092133,1725420692089,-500.0,0.00030684,2]
[337092134,1725420692099,-2356.93,0.00030684,2]
[337092135,1725420692109,-514.4782571,0.00030684,2]
[337092136,1725420692119,-834.19,0.00030684,2]
[337092137,1725420692130,-958.5,0.00030684,2]
[337092138,1725420692140,-832.71,0.00030684,2]
[337092139,1725420692150,-500.0,0.00030684,2]
[337092140,1725420692160,-652.3,0.00030684,2]
[337092141,1725420692170,-500.0,0.00030684,2]
[337092142,1725420692180,-901.33,0.00030684,2]
[337092143,1725420692190,-1011.35,0.00030684,2]
[337092144,1725420692199,-2862.9,0.00030684,2]
[337092145,1725420692209,-2987.56,0.00030684,2]
[337092146,1725420692218,-500.0,0.00030684,2]
[337092147,1725420692228,-500.0,0.00030684,2]
[337092148,1725420692239,-3402.81,0.00030684,2]
[337092149,1725420692249,-1811.33,0.00030684,2]
[337092150,1725420692259,-500.0,0.00030684,2]
[337092151,1725420692270,-500.0,0.00030684,2]
[337092152,1725420692282,-612.22,0.00030684,2]
[337092153,1725420692293,-1243.1,0.00030684,2]
[337092154,1725420692303,-717.23,0.00030684,2]
[337092155,1725420692313,-4418.31,0.00030684,2]
[337092156,1725420692323,-500.0,0.00030684,2]
[337092157,1725420692336,-115684.14,0.00030684,2]
[337092158,1725420692347,-55826.22,0.00030684,2]
[337092159,1725420692356,-500.0,0.00030684,2]
[337092160,1725420692367,-500.0,0.00030684,2]
[337092161,1725420692377,-500.0,0.00030684,2]
[337092162,1725420692389,-500.0,0.00030684,2]
[337092163,1725420692401,-26324.52,0.00030684,2]
[337092164,1725420692412,-6301.07,0.00030684,2]
[337092165,1725420692423,-636.47,0.00030684,2]
[337092166,1725420692435,-1916.51,0.00030684,2]
[337092167,1725420692446,-500.0,0.00030684,2]
[337092168,1725420692456,-500.0,0.00030684,2]
[337092169,1725420692468,-823.36,0.00030684,2]
[337092170,1725420692480,-1701.17,0.00030684,2]
[337092171,1725420692490,-729.84,0.00030684,2]
[337092172,1725420692501,-500.0,0.00030684,2]
[337092173,1725420692513,-519.17642726,0.00030684,2]
[337092174,1725420692524,-712.75,0.00030684,2]
[337092175,1725420692535,-500.0,0.00030684,2]
[337092176,1725420692545,-500.0,0.00030684,2]
[337092177,1725420692555,-500.0,0.00030684,2]
[337092178,1725420692567,-1160.46,0.00030684,2]
[337092179,1725420692576,-1329.1,0.00030684,2]
[337092180,1725420692586,-2729.74,0.00030684,2]
[337092181,1725420692595,-605.95159455,0.00030684,2]
[337092182,1725420692605,-1898.01,0.00030684,2]
[337092183,1725420692614,-500.0,0.00030684,2]
[337092184,1725420692624,-2159.38,0.00030684,2]
[337092185,1725420692634,-1592.01,0.00030684,2]
[337092186,1725420692643,-6188.78,0.00030684,2]
[337092187,1725420692652,-4210.31,0.00030684,2]
[337092188,1725420692662,-1529.25,0.00030684,2]
[337092189,1725420692671,-10461.88,0.00030684,2]
[337092190,1725420692680,-729.82,0.00030684,2]
[337092191,1725420692689,-500.0,0.00030684,2]
[337092192,1725420692698,-1280.26,0.00030684,2]
[337092193,1725420692708,-1560.58,0.00030684,2]
[337092194,1725420692717,-7136.97,0.00030684,2]
[337092195,1725420692726,-1328.68,0.00030684,2]
[337092196,1725420692736,-500.0,0.00030684,2]
[337092197,1725420692746,-929.51,0.00030684,2]
[337092198,1725420692755,-3077.96,0.00030684,2]
[337092199,1725420692765,-683.0,0.00030684,2]
[337092200,1725420692774,-500.0,0.00030684,2]
[337092201,1725420692784,-11939.04,0.00030684,2]
[337092202,1725420692794,-1259.14,0.00030684,2]
[337092203,1725420692803,-13600.34,0.00030684,2]
[337092204,1725420692813,-1182.99,0.00030684,2]
[337092205,1725420692822,-500.0,0.00030684,2]
[337092206,1725420692832,-1155.31,0.00030684,2]
[337092207,1725420692841,-851.0,0.00030684,2]
[337092208,1725420692850,-500.0,0.00030684,2]
[337092209,1725420692859,-1763.89,0.00030684,2]
[337092210,1725420692869,-756.04,0.00030684,2]
[337092211,1725420692879,-500.0,0.00030684,2]
[337092212,1725420692888,-652.71,0.00030684,2]
[337092213,1725420692900,-647.88,0.00030684,2]
[337092214,1725420692914,-4853.04,0.00030684,2]
[337092215,1725420692925,-963.22,0.00030684,2]
[337092216,1725420692937,-1079.72,0.00030684,2]
[337092217,1725420692947,-500.0,0.00030684,2]
[337092218,1725420692959,-803.37,0.00030684,2]
[337092219,1725420692969,-500.0,0.00030684,2]
[337092220,1725420692981,-500.0,0.00030684,2]
[337092221,1725420692992,-606.86,0.00030684,2]
[337092222,1725420693002,-500.0,0.00030684,2]
[337092223,1725420693012,-500.0,0.00030684,2]
[337092224,1725420693022,-1132.32,0.00030684,2]
[337092225,1725420693031,-636.94,0.00030684,2]
[337092226,1725420693041,-500.0,0.00030684,2]
[337092227,1725420693051,-500.0,0.00030684,2]
[337092228,1725420693061,-5252.83,0.00030684,2]
[337092229,1725420693070,-576.63,0.00030684,2]
[337092230,1725420693081,-901.7,0.00030684,2]
[337092231,1725420693091,-500.0,0.00030684,2]
[337092232,1725420693101,-1751.72,0.00030684,2]
[337092233,1725420693110,-559.18733362,0.00030684,2]
[337092234,1725420693121,-500.0,0.00030684,2]
[337092235,1725420693131,-1256.59,0.00030684,2]
[337092236,1725420693141,-500.0,0.00030684,2]
[337092237,1725420693151,-1139.08,0.00030684,2]
[337092238,1725420693163,-500.0,0.00030684,2]
[337092239,1725420693174,-1745.83,0.00030684,2]
[337092240,1725420693183,-500.0,0.00030684,2]
[337092241,1725420693194,-150.0,0.00030766,2]
[337092242,1725420693203,-417.755197,0.00030833,2]
[337092243,1725420693213,-234.03441,0.00030833,2]
[337092244,1725420693224,-523.0,0.00030852,2]
[337092245,1725420693233,-150.0,0.00030852,2]
[337092246,1725420693243,-200.0,0.000309,6]
[337092247,1725420693254,-200.0,0.000309,6]
[337092248,1725420693264,-203.198806,0.00030902,2]
[337092249,1725420693275,-990.987177,0.00030902,2]
[337092250,1725420693285,-600.0,0.00030943,48]
[337092251,1725420693295,-600.0,0.00030943,48]
[337092252,1725420693402,-500.0,0.00030958,2]
[337092253,1725420693412,-500.0,0.00030958,2]
[337092254,1725420693422,-500.0,0.00030958,2]
[337092255,1725420693431,-500.0,0.00030958,2]
[337092256,1725420693443,-500.0,0.00030958,2]
[337092257,1725420693452,-500.0,0.00030958,2]
[337092258,1725420693462,-768.18,0.00030958,2]
[337092259,1725420693472,-500.0,0.00030958,2]
[337092260,1725420693484,-500.0,0.00030958,2]
[337092261,1725420693494,-605.3462609,0.00030958,2]
[337092262,1725420693504,-500.0,0.00030958,2]
[337092263,1725420693515,-500.0,0.00030958,2]
[337092264,1725420693526,-1082.29,0.00030958,2]
[337092265,1725420693536,-686.25,0.00030958,2]
[337092266,1725420693546,-680.2,0.00030958,2]
[337092267,1725420693556,-500.0,0.00030958,2]
[337092268,1725420693567,-592.32,0.00030958,2]
[337092269,1725420693577,-536.45866845,0.00030958,2]
[337092270,1725420693586,-500.0,0.00030958,2]
[337092271,1725420693595,-674.32,0.00030958,2]
[337092272,1725420693605,-4019.26,0.00030958,2]
[337092273,1725420693614,-675.84,0.00030958,2]
[337092274,1725420693624,-231.18651368,0.00030958,2]
[337092275,1725420693635,-754.15,0.00030958,2]
[337092276,1725420693646,-500.0,0.00030958,2]
[337092277,1725420693657,-609.64,0.00030958,2]
[337092278,1725420693668,-654.89,0.00030958,2]
[337092279,1725420693678,-500.0,0.00030958,2]
[337092280,1725420693687,-515.70559924,0.00030958,2]
[337092281,1725420693696,-511.88,0.00030958,2]
[337092282,1725420693706,-500.0,0.00030958,2]
[337092283,1725420693717,-500.0,0.00030958,2]
[337092284,1725420693727,-500.0,0.00030958,2]
[337092285,1725420693739,-731.93,0.00030958,2]
[337092286,1725420693749,-500.0,0.00030958,2]
[337092287,1725420693759,-555.67,0.00030958,2]
[337092288,1725420693769,-534.31,0.00030958,2]
[337092289,1725420693781,-2911.16,0.00030958,2]
[337092290,1725420693793,-500.0,0.00030958,2]
[337092291,1725420693802,-401.07276202,0.00030958,2]
[337092292,1725420693812,-500.0,0.00030958,2]
[337092293,1725420693822,-290.16386021,0.00030958,2]
[337092294,1725420693831,-500.0,0.00030958,2]
[337092295,1725420693841,-1427.1,0.00030958,2]
[337092296,1725420693851,-500.0,0.00030958,2]
[337092297,1725420693861,-338.53351285,0.00030958,2]
[337092298,1725420693871,-500.0,0.00030958,2]